[Event "Early-Titled-Tuesday-Blitz-January-16-2024"]
[Site "Chess.com"]
[Date "2024.01.16"]
[Round "10"]
[White "Yeritsyaan"]
[Black "PolandHussars"]
[Result "1/2-1/2"]
[WhiteElo "2649"]
[BlackElo "2600"]
[TimeControl "180+1"]
[EndTime "9:58:43 PST"]
[Termination "Game drawn by repetition"]

1. d4 {[%clk 0:03:00.9]} 1... Nf6 {[%clk 0:02:57.6]} 2. c4 {[%clk 0:02:58.8]}
2... c5 {[%clk 0:02:57.7]} 3. d5 {[%clk 0:02:58.5]} 3... e6 {[%clk 0:02:57.7]}
4. Nc3 {[%clk 0:02:58.1]} 4... exd5 {[%clk 0:02:58.2]} 5. cxd5 {[%clk
0:02:58.7]} 5... d6 {[%clk 0:02:58.8]} 6. Nf3 {[%clk 0:02:56.2]} 6... g6 {[%clk
0:02:59.1]} 7. h3 {[%clk 0:02:52.9]} 7... Bg7 {[%clk 0:02:59.2]} 8. Bf4 {[%clk
0:02:52.8]} 8... a6 {[%clk 0:02:58.1]} 9. a4 {[%clk 0:02:52.1]} 9... Nh5 {[%clk
0:02:58.4]} 10. Bh2 {[%clk 0:02:51.8]} 10... O-O {[%clk 0:02:58]} 11. e3 {[%clk
0:02:52.3]} 11... f5 {[%clk 0:02:49.6]} 12. Bd3 {[%clk 0:02:50.3]} 12... f4
{[%clk 0:02:44.4]} 13. O-O {[%clk 0:02:43.2]} 13... Nd7 {[%clk 0:02:37.4]} 14.
Ne4 {[%clk 0:02:31.1]} 14... Ne5 {[%clk 0:02:32.3]} 15. Nxe5 {[%clk 0:02:24.8]}
15... Bxe5 {[%clk 0:02:31.3]} 16. exf4 {[%clk 0:02:21.4]} 16... Nxf4 {[%clk
0:02:30.6]} 17. Bc2 {[%clk 0:02:04.8]} 17... Bxb2 {[%clk 0:02:23.5]} 18. Rb1
{[%clk 0:02:02.5]} 18... Be5 {[%clk 0:02:22]} 19. Re1 {[%clk 0:01:59.5]} 19...
Bf5 {[%clk 0:02:18.2]} 20. Nxc5 {[%clk 0:01:53.4]} 20... Bxc2 {[%clk 0:02:17.1]}
21. Qxc2 {[%clk 0:01:54.3]} 21... Rc8 {[%clk 0:02:16.4]} 22. Nxb7 {[%clk
0:00:24.3]} 22... Rxc2 {[%clk 0:02:14.5]} 23. Nxd8 {[%clk 0:00:25]} 23... Rxd8
{[%clk 0:02:14.1]} 24. Rb7 {[%clk 0:00:23.4]} 24... Nd3 {[%clk 0:02:07.7]} 25.
Bxe5 {[%clk 0:00:16.6]} 25... Nxe1 {[%clk 0:02:03.8]} 26. Bf6 {[%clk 0:00:17.2]}
26... Rdc8 {[%clk 0:01:57.1]} 27. Rg7+ {[%clk 0:00:16.3]} 27... Kf8 {[%clk
0:01:57.5]} 28. Rxh7 {[%clk 0:00:17]} 28... Nd3 {[%clk 0:01:56.4]} 29. g4 {[%clk
0:00:12]} 29... R2c7 {[%clk 0:01:44.7]} 30. Rh6 {[%clk 0:00:09.6]} 30... Nf4
{[%clk 0:01:43.4]} 31. g5 {[%clk 0:00:07.2]} 31... Nxd5 {[%clk 0:01:41.3]} 32.
Rxg6 {[%clk 0:00:04.4]} 32... Nxf6 {[%clk 0:01:41.3]} 33. Rxf6+ {[%clk
0:00:05.3]} 33... Kg7 {[%clk 0:01:39.4]} 34. Rxd6 {[%clk 0:00:04.9]} 34... Rc6
{[%clk 0:01:39.8]} 35. Rd7+ {[%clk 0:00:04.6]} 35... Kg6 {[%clk 0:01:39.1]} 36.
h4 {[%clk 0:00:05.5]} 36... Rc4 {[%clk 0:01:38.3]} 37. Rd6+ {[%clk 0:00:04.8]}
37... Kf5 {[%clk 0:01:38.2]} 38. Rf6+ {[%clk 0:00:04.4]} 38... Kg4 {[%clk
0:01:36.8]} 39. Rh6 {[%clk 0:00:03.6]} 39... Rf4 {[%clk 0:01:32]} 40. g6 {[%clk
0:00:02.2]} 40... Kh3 {[%clk 0:01:28]} 41. Kf1 {[%clk 0:00:02.9]} 41... Rc1+
{[%clk 0:01:27.4]} 42. Ke2 {[%clk 0:00:03.6]} 42... Rc2+ {[%clk 0:01:28.3]} 43.
Ke3 {[%clk 0:00:04.5]} 43... Rfxf2 {[%clk 0:01:27.1]} 44. h5 {[%clk 0:00:05.2]}
44... Rg2 {[%clk 0:01:26.8]} 45. Rh7 {[%clk 0:00:04.1]} 45... Rc3+ {[%clk
0:01:26.4]} 46. Kf4 {[%clk 0:00:04]} 46... Rc4+ {[%clk 0:01:26]} 47. Kf3 {[%clk
0:00:03.6]} 47... Rxa4 {[%clk 0:01:24.3]} 48. g7 {[%clk 0:00:03.2]} 48... Ra3+
{[%clk 0:01:24.8]} 49. Kf4 {[%clk 0:00:03.5]} 49... Rag3 {[%clk 0:01:23.9]} 50.
h6 {[%clk 0:00:03.9]} 50... a5 {[%clk 0:01:23.6]} 51. Rh8 {[%clk 0:00:04.5]}
51... a4 {[%clk 0:01:23.3]} 52. Ra8 {[%clk 0:00:05.2]} 52... a3 {[%clk
0:01:21.6]} 53. Ra5 {[%clk 0:00:04.3]} 53... Rg4+ {[%clk 0:01:14.6]} 54. Kf3
{[%clk 0:00:04.4]} 54... R2g3+ {[%clk 0:01:13.8]} 55. Kf2 {[%clk 0:00:04.9]}
55... Rh4 {[%clk 0:01:11.3]} 56. Rxa3 {[%clk 0:00:03.2]} 56... Rxa3 {[%clk
0:00:54]} 57. g8=Q {[%clk 0:00:03.6]} 57... Rxh6 {[%clk 0:00:50.2]} 58. Qc8+
{[%clk 0:00:03]} 58... Kh2 {[%clk 0:00:48.6]} 59. Qc7+ {[%clk 0:00:02.9]} 59...
Kh3 {[%clk 0:00:48.1]} 60. Qd7+ {[%clk 0:00:03]} 60... Kh2 {[%clk 0:00:47.4]}
61. Qc7+ {[%clk 0:00:02.9]} 61... Kh3 {[%clk 0:00:48]} 62. Qc8+ {[%clk
0:00:03.3]} 62... Kh2 {[%clk 0:00:47.4]} 63. Qb8+ {[%clk 0:00:04]} 63... Kh3
{[%clk 0:00:47.9]} 64. Qb7 {[%clk 0:00:04.7]} 64... Rf6+ {[%clk 0:00:46]} 65.
Ke2 {[%clk 0:00:04.9]} 65... Ra2+ {[%clk 0:00:46.1]} 66. Ke3 {[%clk 0:00:05.1]}
66... Raf2 {[%clk 0:00:45.6]} 67. Qh7+ {[%clk 0:00:05.1]} 67... Kg4 {[%clk
0:00:46.1]} 68. Qg7+ {[%clk 0:00:05.5]} 68... Kh5 {[%clk 0:00:46.2]} 69. Qh7+
{[%clk 0:00:06]} 69... Kg5 {[%clk 0:00:46.8]} 70. Qg7+ {[%clk 0:00:06.3]} 70...
Kh5 {[%clk 0:00:47.4]} 71. Qh7+ {[%clk 0:00:05.7]} 71... Kg5 {[%clk 0:00:48]}
72. Qg7+ {[%clk 0:00:06.1]} 72... Kh5 {[%clk 0:00:48.5]} 1/2-1/2

[Event "Early-Titled-Tuesday-Blitz-January-16-2024"]
[Site "Chess.com"]
[Date "2024.01.16"]
[Round "10"]
[White "Tejas_Rama"]
[Black "RobertoJBM"]
[Result "0-1"]
[WhiteElo "2597"]
[BlackElo "2799"]
[TimeControl "180+1"]
[EndTime "9:58:48 PST"]
[Termination "RobertoJBM won by resignation"]

1. d4 {[%clk 0:03:00.9]} 1... d5 {[%clk 0:02:52.2]} 2. c4 {[%clk 0:02:58.4]}
2... c6 {[%clk 0:02:51.8]} 3. Nc3 {[%clk 0:02:58]} 3... Nf6 {[%clk 0:02:51.9]}
4. e3 {[%clk 0:02:57.9]} 4... a6 {[%clk 0:02:51.1]} 5. Nf3 {[%clk 0:02:52.7]}
5... Bf5 {[%clk 0:02:50.3]} 6. cxd5 {[%clk 0:02:51.9]} 6... cxd5 {[%clk
0:02:50.3]} 7. Qb3 {[%clk 0:02:51.8]} 7... Ra7 {[%clk 0:02:49.9]} 8. Nh4 {[%clk
0:02:52]} 8... Bc8 {[%clk 0:02:46.4]} 9. Bd3 {[%clk 0:02:51.3]} 9... e6 {[%clk
0:02:43.6]} 10. Nf3 {[%clk 0:02:50.3]} 10... Bd6 {[%clk 0:02:42.8]} 11. O-O
{[%clk 0:02:49.9]} 11... O-O {[%clk 0:02:42.6]} 12. Bd2 {[%clk 0:02:49.1]} 12...
b5 {[%clk 0:02:42.1]} 13. Rfc1 {[%clk 0:02:41.5]} 13... Bb7 {[%clk 0:02:38.4]}
14. Qd1 {[%clk 0:02:30.5]} 14... Nc6 {[%clk 0:02:36.6]} 15. h3 {[%clk
0:02:05.1]} 15... Ba8 {[%clk 0:02:32]} 16. Be1 {[%clk 0:01:55.9]} 16... Rc7
{[%clk 0:02:31]} 17. Ne2 {[%clk 0:01:52.9]} 17... Qb8 {[%clk 0:02:25.8]} 18. a4
{[%clk 0:01:52]} 18... b4 {[%clk 0:02:21]} 19. Bxa6 {[%clk 0:01:50]} 19... Qb6
{[%clk 0:02:17]} 20. Bb5 {[%clk 0:01:41.9]} 20... Rfc8 {[%clk 0:02:15.3]} 21.
Rc2 {[%clk 0:01:24.6]} 21... Na7 {[%clk 0:01:59.7]} 22. Rxc7 {[%clk 0:01:08.4]}
22... Rxc7 {[%clk 0:02:00.6]} 23. Bd3 {[%clk 0:01:08.6]} 23... Ne4 {[%clk
0:01:46.4]} 24. Rc1 {[%clk 0:00:57.3]} 24... Bc6 {[%clk 0:01:43.3]} 25. Ne5
{[%clk 0:00:38.8]} 25... Be8 {[%clk 0:01:36.8]} 26. Bxe4 {[%clk 0:00:23.8]}
26... dxe4 {[%clk 0:01:23.4]} 27. Nc4 {[%clk 0:00:23.6]} 27... Qa6 {[%clk
0:01:19.5]} 28. Nxd6 {[%clk 0:00:21.1]} 28... Qxd6 {[%clk 0:01:20.4]} 29. Rxc7
{[%clk 0:00:20.3]} 29... Qxc7 {[%clk 0:01:20.9]} 30. Bxb4 {[%clk 0:00:19.4]}
30... Qc4 {[%clk 0:01:21.1]} 31. Bc5 {[%clk 0:00:15.1]} 31... Bxa4 {[%clk
0:01:18.8]} 32. Qc1 {[%clk 0:00:11.1]} 32... Qxe2 {[%clk 0:01:07.4]} 33. Bxa7
{[%clk 0:00:11.1]} 33... h5 {[%clk 0:00:55.1]} 34. b4 {[%clk 0:00:10.5]} 34...
Bb5 {[%clk 0:00:45.7]} 35. Bc5 {[%clk 0:00:10]} 35... g5 {[%clk 0:00:43.8]} 36.
Be7 {[%clk 0:00:09.6]} 36... g4 {[%clk 0:00:42.5]} 37. hxg4 {[%clk 0:00:07.2]}
37... Qxg4 {[%clk 0:00:38.3]} 38. Bd6 {[%clk 0:00:04.1]} 38... Kh7 {[%clk
0:00:31.4]} 39. Kh2 {[%clk 0:00:03.7]} 39... Qf5 {[%clk 0:00:26]} 40. Qc5 {[%clk
0:00:03.8]} 40... Kg6 {[%clk 0:00:18.4]} 41. Qxf5+ {[%clk 0:00:03.8]} 41... Kxf5
{[%clk 0:00:18.4]} 42. Kg3 {[%clk 0:00:04.5]} 42... Bf1 {[%clk 0:00:17.2]} 43.
Bc5 {[%clk 0:00:04.4]} 43... f6 {[%clk 0:00:17.1]} 44. Kh2 {[%clk 0:00:04.6]}
44... Kg4 {[%clk 0:00:16.5]} 45. Kg1 {[%clk 0:00:04.4]} 45... Bb5 {[%clk
0:00:17.1]} 46. Kh2 {[%clk 0:00:05.3]} 46... h4 {[%clk 0:00:17.2]} 47. Be7
{[%clk 0:00:05.3]} 47... f5 {[%clk 0:00:17.6]} 48. Bd6 {[%clk 0:00:05.7]} 48...
Bc4 {[%clk 0:00:17.9]} 49. Kg1 {[%clk 0:00:05.3]} 49... Be2 {[%clk 0:00:18]} 50.
Kh2 {[%clk 0:00:05.3]} 50... Bb5 {[%clk 0:00:18.3]} 51. Be5 {[%clk 0:00:05.5]}
51... Bc6 {[%clk 0:00:18.6]} 52. Bf4 {[%clk 0:00:05.7]} 52... Bb5 {[%clk
0:00:19.1]} 53. f3+ {[%clk 0:00:04.9]} 53... exf3 {[%clk 0:00:18.5]} 54. gxf3+
{[%clk 0:00:05.8]} 54... Kxf3 {[%clk 0:00:18.8]} 55. Kh3 {[%clk 0:00:06.4]}
55... Ke4 {[%clk 0:00:18.1]} 56. Kxh4 {[%clk 0:00:06.9]} 56... Kd5 {[%clk
0:00:18.3]} 57. Kg5 {[%clk 0:00:07.3]} 57... Bc4 {[%clk 0:00:17.9]} 58. Kf6
{[%clk 0:00:07.4]} 58... Kc6 {[%clk 0:00:18.5]} 59. Bg3 {[%clk 0:00:06.8]} 59...
Kb5 {[%clk 0:00:18.5]} 60. Ke5 {[%clk 0:00:07.4]} 60... Kxb4 {[%clk 0:00:18.6]}
61. Be1+ {[%clk 0:00:07.7]} 61... Kb5 {[%clk 0:00:18.6]} 62. Bh4 {[%clk
0:00:08.2]} 62... Bd5 {[%clk 0:00:18.7]} 63. Bg5 {[%clk 0:00:08.8]} 63... Kc4
{[%clk 0:00:19.2]} 64. Bf4 {[%clk 0:00:09.5]} 64... Kd3 {[%clk 0:00:19.8]} 65.
Bg5 {[%clk 0:00:10.1]} 65... Ke2 {[%clk 0:00:20.3]} 66. Bf4 {[%clk 0:00:11]}
66... Kf3 {[%clk 0:00:20.7]} 67. Kd6 {[%clk 0:00:11.8]} 67... Ke4 {[%clk
0:00:20.8]} 68. Ke7 {[%clk 0:00:11.8]} 68... Ba2 {[%clk 0:00:21.7]} 69. Kd6
{[%clk 0:00:12]} 69... Bb3 {[%clk 0:00:21.6]} 70. Be5 {[%clk 0:00:12.6]} 70...
Kxe3 {[%clk 0:00:21.5]} 71. Bf4+ {[%clk 0:00:13.5]} 71... Kxf4 {[%clk
0:00:21.3]} 0-1

[Event "Early-Titled-Tuesday-Blitz-January-16-2024"]
[Site "Chess.com"]
[Date "2024.01.16"]
[Round "10"]
[White "SpongeBob_03"]
[Black "Witty_Alien"]
[Result "1-0"]
[WhiteElo "2224"]
[BlackElo "2339"]
[TimeControl "180+1"]
[EndTime "9:58:50 PST"]
[Termination "SpongeBob_03 won on time"]

1. e4 {[%clk 0:02:25.7]} 1... c5 {[%clk 0:02:26.3]} 2. Nf3 {[%clk 0:02:12.5]}
2... d6 {[%clk 0:02:25.8]} 3. d4 {[%clk 0:02:12.2]} 3... cxd4 {[%clk 0:02:26.3]}
4. Nxd4 {[%clk 0:02:13.1]} 4... Nf6 {[%clk 0:02:27.1]} 5. Nc3 {[%clk 0:02:10.8]}
5... a6 {[%clk 0:02:27.4]} 6. Bg5 {[%clk 0:02:10.1]} 6... e6 {[%clk 0:02:25.2]}
7. f4 {[%clk 0:02:08.6]} 7... Qc7 {[%clk 0:02:25.3]} 8. Qf3 {[%clk 0:02:07.1]}
8... b5 {[%clk 0:02:25.6]} 9. Bd3 {[%clk 0:02:04.5]} 9... Be7 {[%clk 0:02:25.3]}
10. O-O-O {[%clk 0:02:04.5]} 10... h6 {[%clk 0:02:12.1]} 11. Qh3 {[%clk
0:02:02.1]} 11... b4 {[%clk 0:01:58.6]} 12. Nce2 {[%clk 0:01:50.7]} 12... Nc6
{[%clk 0:01:28.2]} 13. Nxc6 {[%clk 0:01:46]} 13... Qxc6 {[%clk 0:01:28.6]} 14.
Nd4 {[%clk 0:01:46.7]} 14... Qc5 {[%clk 0:01:22.2]} 15. Nb3 {[%clk 0:01:41.7]}
15... Qb6 {[%clk 0:01:10.8]} 16. e5 {[%clk 0:01:39.8]} 16... dxe5 {[%clk
0:01:01.1]} 17. fxe5 {[%clk 0:01:40.7]} 17... Nd5 {[%clk 0:00:56.3]} 18. Bxe7
{[%clk 0:01:39.3]} 18... Nxe7 {[%clk 0:00:51.3]} 19. Be4 {[%clk 0:01:37.1]}
19... Bb7 {[%clk 0:00:41.7]} 20. Rd6 {[%clk 0:01:34.3]} 20... Qc7 {[%clk
0:00:40.8]} 21. Bxb7 {[%clk 0:01:19.9]} 21... Qxb7 {[%clk 0:00:41]} 22. Nc5
{[%clk 0:01:20.2]} 22... Qc7 {[%clk 0:00:22.6]} 23. Nxe6 {[%clk 0:01:14.2]}
23... fxe6 {[%clk 0:00:21.6]} 24. Qxe6 {[%clk 0:01:15.1]} 24... Rc8 {[%clk
0:00:12.7]} 25. Qb3 {[%clk 0:01:01.3]} 25... Qc4 {[%clk 0:00:11.8]} 26. Qa4+
{[%clk 0:00:57]} 26... Qb5 {[%clk 0:00:08.5]} 27. Qb3 {[%clk 0:00:53.7]} 27...
Qc4 {[%clk 0:00:03.7]} 28. Qa4+ {[%clk 0:00:47.3]} 28... Qb5 {[%clk 0:00:03.8]}
29. Qxa6 {[%clk 0:00:47.4]} 29... Qxa6 {[%clk 0:00:03.7]} 30. Rxa6 {[%clk
0:00:48.2]} 30... O-O {[%clk 0:00:03.9]} 31. Rd1 {[%clk 0:00:32.6]} 31... Rf2
{[%clk 0:00:03.2]} 32. Rd2 {[%clk 0:00:32.9]} 32... Rf1+ {[%clk 0:00:03.1]} 33.
Rd1 {[%clk 0:00:33.1]} 33... Rf5 {[%clk 0:00:01.6]} 34. e6 {[%clk 0:00:22.5]}
34... Nd5 {[%clk 0:00:02.1]} 35. Re1 {[%clk 0:00:19.5]} 35... Rf6 {[%clk
0:00:01.3]} 36. Rd6 {[%clk 0:00:18.3]} 36... Nb6 {[%clk 0:00:01.2]} 37. Rxb6
{[%clk 0:00:18]} 37... Rf2 {[%clk 0:00:01.8]} 38. Kb1 {[%clk 0:00:10.5]} 38...
Rcxc2 {[%clk 0:00:02.2]} 39. Rxb4 {[%clk 0:00:10.7]} 39... Rce2 {[%clk
0:00:02.2]} 40. Rxe2 {[%clk 0:00:10.7]} 40... Rxe2 {[%clk 0:00:03.1]} 41. Rb6
{[%clk 0:00:10.9]} 41... Rxg2 {[%clk 0:00:02.6]} 42. e7 {[%clk 0:00:10.7]} 42...
Kf7 {[%clk 0:00:03]} 43. Rb7 {[%clk 0:00:10.9]} 43... Rxh2 {[%clk 0:00:02.7]}
44. a4 {[%clk 0:00:11.2]} 44... h5 {[%clk 0:00:01.9]} 45. a5 {[%clk 0:00:11.5]}
45... Re2 {[%clk 0:00:01.5]} 46. a6 {[%clk 0:00:11.9]} 46... Re6 {[%clk
0:00:01.9]} 47. a7 {[%clk 0:00:12.1]} 47... Ra6 {[%clk 0:00:02.6]} 48. b4 {[%clk
0:00:12]} 48... h4 {[%clk 0:00:03.3]} 49. b5 {[%clk 0:00:12.3]} 49... Ra5 {[%clk
0:00:03.3]} 50. b6 {[%clk 0:00:12.9]} 50... h3 {[%clk 0:00:04]} 51. Rd7 {[%clk
0:00:12.6]} 51... h2 {[%clk 0:00:03.6]} 52. Rd1 {[%clk 0:00:12.6]} 52... Ra6
{[%clk 0:00:02.8]} 53. b7 {[%clk 0:00:12.6]} 53... Rxa7 {[%clk 0:00:01.6]} 54.
b8=Q {[%clk 0:00:12.8]} 54... Rxe7 {[%clk 0:00:02.1]} 55. Qxh2 {[%clk
0:00:12.4]} 1-0

[Event "Early-Titled-Tuesday-Blitz-January-16-2024"]
[Site "Chess.com"]
[Date "2024.01.16"]
[Round "10"]
[White "hmatyi07"]
[Black "guillembaches"]
[Result "0-1"]
[WhiteElo "2231"]
[BlackElo "2520"]
[TimeControl "180+1"]
[EndTime "9:58:53 PST"]
[Termination "guillembaches won by resignation"]

1. e4 {[%clk 0:03:00.9]} 1... d5 {[%clk 0:02:59.9]} 2. exd5 {[%clk 0:03:00.9]}
2... Qxd5 {[%clk 0:03:00.8]} 3. Nc3 {[%clk 0:03:01.1]} 3... Qa5 {[%clk
0:03:01.4]} 4. Bc4 {[%clk 0:03:00.9]} 4... Nf6 {[%clk 0:03:01.7]} 5. d3 {[%clk
0:03:01]} 5... a6 {[%clk 0:03:01.8]} 6. Bd2 {[%clk 0:03:01]} 6... Qe5+ {[%clk
0:03:01.1]} 7. Qe2 {[%clk 0:03:00.3]} 7... Qxe2+ {[%clk 0:03:00.2]} 8. Ngxe2
{[%clk 0:03:01.2]} 8... b5 {[%clk 0:03:00.3]} 9. Bb3 {[%clk 0:03:01.4]} 9... Bb7
{[%clk 0:03:00.3]} 10. f3 {[%clk 0:03:00.5]} 10... e6 {[%clk 0:02:56.5]} 11.
O-O-O {[%clk 0:02:58.1]} 11... Nbd7 {[%clk 0:02:52.5]} 12. Bf4 {[%clk
0:02:54.1]} 12... O-O-O {[%clk 0:02:43.6]} 13. Ng3 {[%clk 0:02:51]} 13... Nc5
{[%clk 0:02:41.7]} 14. Nge4 {[%clk 0:02:44.9]} 14... Nxb3+ {[%clk 0:02:39.8]}
15. axb3 {[%clk 0:02:45.8]} 15... Be7 {[%clk 0:02:38.1]} 16. Nxf6 {[%clk
0:02:33.7]} 16... Bxf6 {[%clk 0:02:33.3]} 17. Ne4 {[%clk 0:02:34.1]} 17... Be7
{[%clk 0:02:30.1]} 18. Rhe1 {[%clk 0:02:29.4]} 18... Kd7 {[%clk 0:02:23.5]} 19.
d4 {[%clk 0:02:05.8]} 19... Bd5 {[%clk 0:02:06.6]} 20. Nc5+ {[%clk 0:01:59.2]}
20... Bxc5 {[%clk 0:01:57.6]} 21. dxc5 {[%clk 0:02:00.1]} 21... Kc8 {[%clk
0:01:56.1]} 22. b4 {[%clk 0:01:53.6]} 22... f6 {[%clk 0:01:47.7]} 23. Bg3 {[%clk
0:01:46.6]} 23... Rhe8 {[%clk 0:01:47]} 24. Rd2 {[%clk 0:01:45]} 24... e5 {[%clk
0:01:40.7]} 25. Bf2 {[%clk 0:01:32.5]} 25... Kb7 {[%clk 0:01:29.7]} 26. h3
{[%clk 0:01:31.4]} 26... Kc6 {[%clk 0:01:29.6]} 27. Re3 {[%clk 0:01:14.5]} 27...
Rd7 {[%clk 0:01:27.4]} 28. Ra3 {[%clk 0:01:11.4]} 28... Kb7 {[%clk 0:01:26.4]}
29. b3 {[%clk 0:01:02.6]} 29... Red8 {[%clk 0:01:23.5]} 30. Be3 {[%clk
0:00:53.1]} 30... Be6 {[%clk 0:01:20.9]} 31. Rxd7 {[%clk 0:00:51]} 31... Rxd7
{[%clk 0:01:18.9]} 32. Ra1 {[%clk 0:00:49.2]} 32... Bd5 {[%clk 0:01:13.3]} 33.
Kb2 {[%clk 0:00:45]} 33... Bc6 {[%clk 0:01:11.8]} 34. Rb1 {[%clk 0:00:40.6]}
34... f5 {[%clk 0:01:08.1]} 35. Kc1 {[%clk 0:00:29.8]} 35... f4 {[%clk
0:01:03.1]} 36. Bd2 {[%clk 0:00:29.8]} 36... g5 {[%clk 0:01:01]} 37. Be1 {[%clk
0:00:28.5]} 37... e4 {[%clk 0:01:00.3]} 38. fxe4 {[%clk 0:00:19.7]} 38... Bxe4
{[%clk 0:01:00.4]} 39. g3 {[%clk 0:00:17.7]} 39... Bg2 {[%clk 0:00:42]} 40. h4
{[%clk 0:00:11.4]} 40... h6 {[%clk 0:00:38.3]} 41. hxg5 {[%clk 0:00:11.3]} 41...
hxg5 {[%clk 0:00:38.9]} 42. gxf4 {[%clk 0:00:11]} 42... gxf4 {[%clk 0:00:39.4]}
43. Rb2 {[%clk 0:00:11.3]} 43... Bf3 {[%clk 0:00:30.6]} 44. Bd2 {[%clk
0:00:07.4]} 44... Be2 {[%clk 0:00:29]} 45. c3 {[%clk 0:00:06.5]} 45... f3 {[%clk
0:00:28.3]} 46. Be3 {[%clk 0:00:06.5]} 46... Rd3 {[%clk 0:00:24.4]} 47. Bd4
{[%clk 0:00:06]} 47... Kc6 {[%clk 0:00:21]} 48. Rd2 {[%clk 0:00:04.6]} 48...
Rxd4 {[%clk 0:00:18.5]} 49. Rxd4 {[%clk 0:00:04]} 49... f2 {[%clk 0:00:18.6]}
50. Rf4 {[%clk 0:00:03.2]} 50... f1=Q+ {[%clk 0:00:18.9]} 51. Rxf1 {[%clk
0:00:03.8]} 51... Bxf1 {[%clk 0:00:19.3]} 52. Kd2 {[%clk 0:00:04.4]} 52... Bh3
{[%clk 0:00:19.3]} 53. c4 {[%clk 0:00:03.7]} 53... Be6 {[%clk 0:00:19.1]} 54.
Kc3 {[%clk 0:00:04]} 54... Bf7 {[%clk 0:00:19.2]} 55. Kd4 {[%clk 0:00:04.3]}
55... Bg8 {[%clk 0:00:19.2]} 56. Kc3 {[%clk 0:00:04.8]} 56... Kd7 {[%clk
0:00:19.4]} 57. Kd4 {[%clk 0:00:05.1]} 57... c6 {[%clk 0:00:19.5]} 58. Ke5
{[%clk 0:00:05.1]} 58... bxc4 {[%clk 0:00:18.3]} 59. bxc4 {[%clk 0:00:04.6]}
59... Bxc4 {[%clk 0:00:18.7]} 60. Kd4 {[%clk 0:00:05.5]} 60... Bb5 {[%clk
0:00:19]} 61. Ke5 {[%clk 0:00:05.5]} 61... Ke7 {[%clk 0:00:19.4]} 62. Kf5 {[%clk
0:00:05.2]} 62... Kf7 {[%clk 0:00:19.6]} 63. Ke5 {[%clk 0:00:05.8]} 63... Kg6
{[%clk 0:00:19.1]} 64. Kd6 {[%clk 0:00:06]} 64... Kf5 {[%clk 0:00:19.1]} 65. Kc7
{[%clk 0:00:04.5]} 65... Ke4 {[%clk 0:00:19.4]} 66. Kb6 {[%clk 0:00:03.7]} 66...
Kd4 {[%clk 0:00:19.7]} 0-1

[Event "Early-Titled-Tuesday-Blitz-January-16-2024"]
[Site "Chess.com"]
[Date "2024.01.16"]
[Round "10"]
[White "Nasrin_Babayeva"]
[Black "UNSTOPPABLE_LEGEND"]
[Result "1/2-1/2"]
[WhiteElo "1913"]
[BlackElo "2508"]
[TimeControl "180+1"]
[EndTime "9:58:55 PST"]
[Termination "Game drawn by repetition"]

1. e4 {[%clk 0:03:00.5]} 1... Nc6 {[%clk 0:02:57.6]} 2. d3 {[%clk 0:03:00.2]}
2... e5 {[%clk 0:02:57.5]} 3. Nd2 {[%clk 0:03:00.2]} 3... Nf6 {[%clk 0:02:57.8]}
4. c3 {[%clk 0:03:00.5]} 4... d5 {[%clk 0:02:58.2]} 5. Ngf3 {[%clk 0:02:59.1]}
5... Bc5 {[%clk 0:02:58.1]} 6. Be2 {[%clk 0:02:58.8]} 6... O-O {[%clk
0:02:57.2]} 7. O-O {[%clk 0:02:58.8]} 7... a5 {[%clk 0:02:56.9]} 8. a3 {[%clk
0:02:57]} 8... Re8 {[%clk 0:02:55]} 9. Rb1 {[%clk 0:02:52.3]} 9... a4 {[%clk
0:02:54]} 10. exd5 {[%clk 0:02:49.3]} 10... Nxd5 {[%clk 0:02:53.4]} 11. Ne4
{[%clk 0:02:49.3]} 11... Bf8 {[%clk 0:02:52.4]} 12. Nfg5 {[%clk 0:02:41.2]}
12... h6 {[%clk 0:02:45.9]} 13. Nf3 {[%clk 0:02:38.2]} 13... f5 {[%clk
0:02:46.4]} 14. Ng3 {[%clk 0:02:35.1]} 14... Qf6 {[%clk 0:02:43.2]} 15. Bd2
{[%clk 0:02:30.2]} 15... Be6 {[%clk 0:02:41.6]} 16. c4 {[%clk 0:02:26.1]} 16...
Nb6 {[%clk 0:02:36.4]} 17. Bc3 {[%clk 0:02:25.8]} 17... Rad8 {[%clk 0:02:33.1]}
18. Re1 {[%clk 0:02:15.3]} 18... Bc5 {[%clk 0:02:30.7]} 19. Qc2 {[%clk
0:02:08.4]} 19... Nd4 {[%clk 0:02:29]} 20. Bxd4 {[%clk 0:02:05.2]} 20... Bxd4
{[%clk 0:02:29.9]} 21. c5 {[%clk 0:02:03.9]} 21... Bb3 {[%clk 0:02:29.8]} 22.
Qc1 {[%clk 0:02:02.5]} 22... Nd5 {[%clk 0:02:22]} 23. Nxd4 {[%clk 0:01:59.1]}
23... exd4 {[%clk 0:02:22.9]} 24. Bf3 {[%clk 0:01:48.7]} 24... c6 {[%clk
0:02:17.8]} 25. Nh5 {[%clk 0:01:44.5]} 25... Qg6 {[%clk 0:02:09.1]} 26. Rxe8+
{[%clk 0:01:41.5]} 26... Rxe8 {[%clk 0:02:08.5]} 27. Nf4 {[%clk 0:01:36.8]}
27... Qf7 {[%clk 0:02:05]} 28. Bh5 {[%clk 0:01:35]} 28... Qe7 {[%clk 0:01:58.4]}
29. Bxe8 {[%clk 0:01:33.5]} 29... Qxe8 {[%clk 0:01:57.5]} 30. Nxd5 {[%clk
0:01:33.1]} 30... Bxd5 {[%clk 0:01:58.4]} 31. Qf4 {[%clk 0:01:26.8]} 31... Qg6
{[%clk 0:01:56.4]} 32. f3 {[%clk 0:01:21.5]} 32... Qe6 {[%clk 0:01:36.6]} 33.
Kf2 {[%clk 0:01:14]} 33... Qe7 {[%clk 0:01:18.6]} 34. Qxd4 {[%clk 0:01:13.3]}
34... Qg5 {[%clk 0:01:17.1]} 35. Qe3 {[%clk 0:01:04.8]} 35... f4 {[%clk
0:01:14.9]} 36. Qd4 {[%clk 0:00:59.5]} 36... Qh4+ {[%clk 0:01:14.8]} 37. Kg1
{[%clk 0:00:58]} 37... Qg5 {[%clk 0:01:14.6]} 38. Rf1 {[%clk 0:00:52.5]} 38...
Kh7 {[%clk 0:01:13.7]} 39. Qxa4 {[%clk 0:00:52.3]} 39... Qf6 {[%clk 0:01:11.4]}
40. d4 {[%clk 0:00:49.6]} 40... Qg6 {[%clk 0:01:06.8]} 41. Qd1 {[%clk
0:00:44.7]} 41... h5 {[%clk 0:01:03.9]} 42. Rf2 {[%clk 0:00:43.7]} 42... Qf6
{[%clk 0:00:56.6]} 43. Qd3+ {[%clk 0:00:40.7]} 43... Kh6 {[%clk 0:00:53.8]} 44.
Re2 {[%clk 0:00:35.2]} 44... Bf7 {[%clk 0:00:51]} 45. Qd2 {[%clk 0:00:27.5]}
45... h4 {[%clk 0:00:43.7]} 46. Re4 {[%clk 0:00:26.7]} 46... g5 {[%clk
0:00:43.4]} 47. Re5 {[%clk 0:00:24.6]} 47... h3 {[%clk 0:00:42.4]} 48. gxh3
{[%clk 0:00:20.1]} 48... Bd5 {[%clk 0:00:42.4]} 49. Qg2 {[%clk 0:00:19.3]} 49...
Qg6 {[%clk 0:00:40.8]} 50. Re1 {[%clk 0:00:15.9]} 50... Qd3 {[%clk 0:00:39.7]}
51. Qg4 {[%clk 0:00:14]} 51... Qxd4+ {[%clk 0:00:17]} 52. Kh1 {[%clk 0:00:10.2]}
52... Qf2 {[%clk 0:00:17.1]} 53. Re6+ {[%clk 0:00:07.8]} 53... Bxe6 {[%clk
0:00:12.4]} 54. Qxe6+ {[%clk 0:00:08.7]} 54... Kh5 {[%clk 0:00:13.3]} 55. Qf7+
{[%clk 0:00:06.7]} 55... Kh6 {[%clk 0:00:13.4]} 56. Qf6+ {[%clk 0:00:07.3]}
56... Kh7 {[%clk 0:00:14]} 57. Qf7+ {[%clk 0:00:07.7]} 57... Kh8 {[%clk
0:00:14.4]} 58. Qf8+ {[%clk 0:00:08.2]} 58... Kh7 {[%clk 0:00:15.3]} 59. Qf7+
{[%clk 0:00:08.6]} 59... Kh6 {[%clk 0:00:16.2]} 60. Qf6+ {[%clk 0:00:09.1]}
60... Kh5 {[%clk 0:00:16.6]} 61. Qf7+ {[%clk 0:00:09.2]} 61... Kh6 {[%clk
0:00:16]} 1/2-1/2